{"text_format":"2","workbook":"xlsx","n_sheets":28,"sheets":["Balance de Comprobación","Cambios Act. Netos Disponibles","Act. Netos Dispon. Beneficios","Actuarial","Nota 1","Nota 2","Nota 3","Nota 4","Nota 5","Nota 6","Nota 7","Nota 8","Nota 9","Nota 10","Nota 11","Nota 12","Nota 13","Nota 14","Nota 15","Nota 16","Nota 17","Nota 18","Nota 19","Nota 20","Nota 21","Nota 22","Nota 23","Nota 24"],"not_rendered":{"charts":0,"images":1,"macros":0,"external_links":0,"defined_names":25,"comments":1,"pivot_tables":0},"unopened":[],"bounds":{"document_bytes":16777216,"sheet_cells":100000,"run_cost":"one","rows_first":2000,"rows_last":500,"rows_between":2000,"halvings":0,"cell_chars":16384,"cell_head_chars":4096},"cells_cut":0,"cells_raw":0,"read":"whole","date_system":"1900"}

{"sheet":"Balance de Comprobación","index":0,"n_rows":68,"n_cols":8,"rows_kept":68,"cut":false,"hidden":false,"merged":[[44,2,44,3],[1,2,1,7],[3,2,3,7],[5,2,5,7]]}
[]
[null,null,"Fondo de Jubilaciones y Pensiones del Poder Judicial"]
[]
[null,null,"Balance de Comprobación"]
[]
[null,null,"Al 31 de Enero de 2018"]
[null," "]
[]
[null,null,"ACTIVO"]
[null,null,"Cuentas Corrientes Y De Ahorro ",null,null,206064324.34999999]
[null,null,"Inversiones En Valores De Emisores Nacionales",null,null,479038590826.78003]
[null,null,"Cuentas Por Cobrar",null,null,196645526.83000001]
[null,null,"Productos Por Cobrar Sobre Inversiones",null,null,8527911266.4399996]
[null,null,"Préstamos a Afiliados",null,null,43748880.939999998]
[null,null,"Aportes Por Cobrar A Los Trabajadores",null,null,2874161014.0500002]
[null,null,"Aportes Por Cobrar Al Patrono",null,null,5797185506.2788]
[null,null,"Aportes Por Cobrar Al Estado",null,null,369333831.44999999]
[null,null,"Otros Aportes Por Cobrar",null,null,250573204.72]
[null,null,"Mobiliario Y Equipo",null,null,0]
[null,null,"Equipo De Cómputo",null,null,0]
[null,null,"(Depreciación Acumulada)",null,null,0]
[null,null,"Costo de Programas Informáticos-Software",null,null,7618670]
[null,null,"(Amortización Programas Informáticos)",null,null,-7618670]
[null,null,"GASTOS"]
[null,null,"Pérdidas por Negociación de Instrumentos Financieros",null,null,0]
[null,null,"Pérdidas Por Fluctuación Cambiaria",null,null,251420836.43000001]
[null,null,"Pérdidas por Variaciones en la Unidad de Referencia",null,null,11862102.789999999]
[null,null,"Gastos Generales",null,null,478321387.22000003]
[null,null,"PASIVO"]
[null,null,"Retenciones A Pensionados",{"$nulls":4},668402972.76999998]
[null,null,"Obligaciones Por Liquidar Empleados",{"$nulls":4},358670.26]
[null,null,"Obligaciones Transitorias por Liquidar",{"$nulls":4},52333830.600000001]
[null,null,"Retención Por Servicios Recibidos",{"$nulls":4},0]
[null,null,"Cotización Seguro De Enfermedad Y Maternidad",{"$nulls":4},478171777.31999999]
[null,null,"Provisión Para Pensiones En Curso De Pago ",{"$nulls":4},493308518508.91998]
[null,null,"INGRESOS"]
[null,null,"Productos Sobre Inversiones De Emisores Nacionales",{"$nulls":4},2786851100.9400001]
[null,null,"Intereses Sobre Saldos En Cuentas Bancarias",{"$nulls":4},0]
[null,null,"Por Negociación de Instrumentos Financieros",{"$nulls":4},0]
[null,null,"Ganancias por Fluctuación Cambiaria",{"$nulls":4},376910599.42000002]
[null,null,"Ganancias por Variaciones en la Unidad de Referencia",{"$nulls":4},372139561.48000002]
[null,null,"Ingresos sobre Préstamos de Afiliados",{"$nulls":4},352473.08]
[null,null,"Otros Ingresos",{"$nulls":4},1779213.49]
[]
[null,null,"Sumas Iguales",null,null,{"$f":"SUM(F10:F28)","v":498045818708.27875},null,{"$f":"SUM(H30:H43)","v":498045818708.27997}]
{"$rows_empty":22}
[null,null,"Observación: Enlace al Manual de Políticas Contables."]

{"sheet":"Cambios Act. Netos Disponibles","index":1,"n_rows":79,"n_cols":6,"rows_kept":79,"cut":false,"hidden":false,"merged":[]}
[null,"Fondo de Jubilaciones y Pensiones"]
[null,"Estado de Cambios en los Activos Netos Disponibles"]
[null,"Por el mes terminado al 31/01/2018"]
[null,"(En colones sin céntimos)"]
[]
[]
[null,null,null,"SALDO MENSUAL"]
[null,null,"NOTAS "]
[null,"SALDO INICIAL",null,null,2908712973,"(1)"]
[]
[null,"INGRESOS",null,null,3538032948.4099998]
[]
[null,"INGRESOS FINANCIEROS",null,3536253734.9200001]
[null,"Productos sobre Inversiones de Emisores Nacionales","Nota 1",2786851100.9400001]
[null,"Intereses sobre Saldos en Cuentas Corrientes",null,0]
[null,"Por negociación de instrumentos financieros",null,0]
[null,"Ganancias por Fluctuación Cambiaria","Nota 2",376910599.42000002]
[null,"Ganancias por Variaciones en la Unidad de Referencia","Nota 3",372139561.48000002]
[null,"Ingresos sobre Préstamos a Afiliados y Pensionados ","Nota 4",352473.08]
[]
[null,"OTROS INGRESOS",null,1779213.49]
[]
[null,"PLAN DE CONTRIBUCIONES","Nota 5",null,5982792375.3299999]
[]
[null,"RESERVAS EN FORMACION",null,5982792375.3299999]
[null,"De los trabajadores",null,2287762405.6500001]
[null,"Del Patrono",null,2968360111.7600002]
[null,"Del Estado",null,125547130.2]
[null,"De los Pensionados",null,601122727.72000003]
[null,"Rendimientos Acumulados",null,0]
[]
[null,"UTILIDAD ( PERDIDA DEL EJERCICIO )",null,0]
[]
[null,"TOTAL ADICIONES",null,null,9520825323.7399998]
[]
[null,"SALIDA DE RECURSOS",null,null,8891505348.5400009]
[null,"Por Nuevos Pensionados","Nota 6",8891505348.5400009]
[]
[null,"GASTOS",null,null,741604326.44000006]
[]
[null,"GASTOS FINANCIEROS",null,263282939.22]
[null,"Pérdida por Negociación de Inst. Financ.","Nota 9",0]
[null,"Pérdida por Fluctuación Cambiaria","Nota 7",251420836.43000001]
[null,"Pérdida por Variaciones en la Unidad de Referencia","Nota 8",11862102.789999999]
[]
[null,"GASTOS GENERALES","Nota 9",478321387.22000003]
[]
[null,"TOTAL DE DEDUCCIONES",null,null,9633109674.9800014]
[]
[null,"ACTIVOS NETOS DISPONIBLES PARA BENEFICIOS"]
[null,"FUTUROS AL FINAL DEL PERIODO (2)",null,null,2796428621.7599983]
[]
[]
[null,"Observaciones: "]
[null,"(1) Saldo inicial mensual: Corresponde al total de activos disponibles para beneficios futuros al final del mes de Diciembre 2017."]
[null,"(2) Activos Netos Disponibles para Beneficios Futuros al Final del Periodo: Corresponde al total de ingresos menos el total de gastos."]
{"$rows_empty":22}
[null,"Observación: Enlace al Manual de Políticas Contables."]

{"sheet":"Act. Netos Dispon. Beneficios","index":2,"n_rows":86,"n_cols":5,"rows_kept":86,"cut":false,"hidden":false,"merged":[]}
[]
[null,"Fondo de Jubilaciones y Pensiones del Poder Judicial"]
[null,"Estado de Activos Netos Disponibles para Beneficios"]
[null,"AL 31/01/2018"]
[null,"(En colones sin céntimos)"]
[null,null,"NOTAS"]
[null,"DISPONIBILIDADES",null,null,206064324]
[null,"Cuentas Corrientes y de Ahorro","Nota 10",206064324]
[]
[null,"INVERSIONES EN VALORES ",null,null,479038590826.78003]
[null,"EN CURSO DE PAGO"]
[null,"Inversiones en Valores de Emisores Nacionales ","Nota 11",479038590826.78003]
[]
[null,"CUENTAS Y PRODUCTOS POR COBRAR SOBRE INVERSIONES",null,null,8724556793.2700005]
[null,"PROVISION PARA PENSIONES EN CURSO DE PAGO"]
[null,"Cuentas Por Cobrar","Nota 12",196645526.83000001]
[null,"Productos Por Cobrar Sobre Inversiones De Emisores Nacionales ","Nota 13",8527911266.4399996]
[]
[null,"PRESTAMOS A AFILIADOS Y PENSIONADOS",null,null,43748880.939999998]
[null,"Préstamos por Cobrar","Nota 14",43746505.140000001]
[null,"Productos por Cobrar sobre Préstamos","Nota 14",2375.8000000000002]
[]
[null,"APORTES POR COBRAR",null,null,9291253556.4988003]
[null,"Aportes Por Cobrar A Los Trabajadores","Nota 15",2874161014.0500002]
[null,"Aportes Por Cobrar Al Patrono","Nota 15",5797185506.2788]
[null,"Aportes Por Cobrar Al Estado","Nota 15",369333831.44999999]
[null,"Otros Aportes Por Cobrar","Nota 15",250573204.72]
[]
[null,"PROPIEDAD, PLANTA Y EQUIPO",null,null,0]
[null,"Mobiliario y Equipo",null,0]
[null,"Equipo de Cómputo",null,0]
[null,"(Depreciación Acumulada)",null,0]
[]
[null,"OTROS ACTIVOS",null,null,0]
[null,"Intangibles","Nota 16",0]
[]
[null,"ACTIVO TOTAL",null,null,497304214381.48883]
[]
[null,"CUENTAS POR PAGAR"]
[null,"Retenciones A Pensionados","Nota 17",668402972.76999998,721095473.63]
[null,"Obligaciones Por Liquidar Empleados y Exempleados","Nota 18",358670.26]
[null,"Intereses Por Devolver De Depósitos Judi",null,0]
[null,"Obligaciones Transitorias por Liquidar","Nota 19",52333830.600000001]
[null,"Retención Por Servicios Recibidos",23,0]
[]
[null,"PROVISIONES",null,null,478171777.31999999]
[null,"Cotización Seguro De Enfermedad y Maternidad","Nota 20",478171777.31999999]
[]
[null,"PROVISIONES PARA PENSIONES EN CURSO DE PAGO","Nota 21",null,493308518508.91998]
[]
[null,"PASIVO TOTAL",null,null,494507785759.87]
[]
[null,"ACTIVOS NETOS DISPONIBLES PARA BENEFICIOS FUTUROS (1)",null,null,2796428621.6188354]
[]
[null,"CUENTAS DE ORDEN","Nota 22",null,44287013.359999999]
[]
[]
[null,"Observaciones:"]
[null,"(1) Activos Netos Disponibles para Beneficios Futuros al Final del Periodo: Corresponde al total de ingresos menos el total de gastos."]
{"$rows_empty":26}
[null,"Observación: Enlace al Manual de Políticas Contables."]

{"sheet":"Actuarial","index":3,"n_rows":54,"n_cols":5,"rows_kept":54,"cut":false,"hidden":false,"merged":[[29,1,30,4],[25,1,25,3],[1,1,1,4],[2,1,2,4],[3,1,3,4],[4,1,4,4],[23,1,23,4]]}
[]
[null,"Fondo de Jubilaciones y Pensiones"]
[null,"Recursos Disponibles Para Atender Total de Beneficios y Pensiones Actuales"]
[null,"Al 31 de Enero de 2018"]
[null,"(En colones sin céntimos)"]
[]
[]
[null,"VALOR PRESENTE ACTUARIAL DE INGRESOS","NOTAS",null,{"$f":"+D10+D11","v":2360724220537.9199}]
[]
[null,"Contribuciones Futuras Total activo población abierta (1 y 3)",null,1867415702029]
[null,"Provisión Para Pensiones en Curso de Pago (2)",null,{"$f":"+'Nota 21'!J13","v":493308518508.91998}]
[null,null,null," "]
[]
[null,"VALOR PRESENTE ACTUARIAL DE BENEFICIOS Población Abierta (1)",null,null,{"$f":"D15+D16+D17","v":6176192485779}]
[null,"Valor Presente Pensiones en Curso de Pago. Beneficios población pasiva.(4)",null,677998560169]
[null,"Valor Presente de Pensiones Futuras. Beneficios población activa.(5)",null,3265388579648]
[null,"Valor Presente de Pensiones Futuras. Beneficios población ingresante.(5)",null,2232805345962]
[]
[null,"SUPERAVIT O DEFICIT ACTUARIAL DEL TOTAL DE PENSIONES","NOTA 23",null,{"$f":"+E8-E14","v":-3815468265241.0801}]
[]
[]
[null,"SUPERAVIT O DEFICIT ACTUARIAL DE PENSIONES EN CURSO DE PAGO","NOTA 24",null,{"$f":"+D11-D15","v":-184690041660.08002}]
[]
[null,"(1) Corresponde al último estudio actuarial con corte al 31 de diciembre del 2011."]
[null,"(2) Ver nota 24"]
[null,"(3) Obedece al total de las cotizaciones proyectadas actuarialmente de los jubilados y pensionados actuales, así como los empleados y la generación futura, para los proximos cien año."]
[null,"(4) Coresponde al valor presente de las obligaciones de los pensionados y jubilados actuales, determinado en el estudio actuarial."]
[null,"(5) Coresponde al valor presente de las obligaciones de los pensionados y jubilados fututas, determinado en el estudio actuarial."]
[]
[null,"Nota: Mediante oficio SP-25-2018 del 09/01/2018, la Superintendencia de Pensiones remite a consulta el proyecto de acuerdo para la modificación del Manual de Información para Regímenes de Pensiones de Capitalización Colectiva, el cual en caso de aprobarse se estaría eliminando la información referente al Estudio Acturial del Estado Financiero."]
{"$rows_empty":23}
[null,"Observación: Enlace al Manual de Políticas Contables."]

{"sheet":"Nota 1","index":4,"n_rows":18,"n_cols":8,"rows_kept":18,"cut":false,"hidden":false,"merged":[[2,1,3,7],[4,1,4,7]]}
[]
[null,"Nota 1:"]
[null,"Productos sobre Inversiones de Emisores Nacionales"]
[]
[null,"al 31 de Enero de 2018"]
[]
[null,"MENSUAL "]
[]
[null,"PRODUCTOS SOBRE INVERSIONES DE VALORES NACIONALES",null,"COLONES",null,"DOLARES",null,"TOTAL"]
[]
[null,"Intereses devengados",null,2716879618.1599998,null,181765890.74000001,null,{"$f":"+D11+F11","v":2898645508.8999996}]
[null,"Amortización de descuento",null,3520499.0100000002,null,21137.06,null,{"$f":"+D12+F12","v":3541636.0700000003}]
[null,"Comisión devengada",null,0,null,-130184.67,null,-130184.67]
[null,"Amortización de prima",null,-159225008.06,null,-979535.1,null,-160204543.16]
[null,"Otros intereses devengados",null,0,null,0,null,0]
[null,"Ingresos por Dividendos",null,0,null,44998683.799999997,null,44998683.799999997]
[]
[null,"TOTAL DE PRODUC. SOBRE INVERS. DE VALORES NACIONALES.",null,{"$f":"SUM(D11:D16)","v":2561175109.1100001},null,{"$f":"SUM(F11:F17)","v":225675991.83000004},null,{"$f":"SUM(H11:H17)","v":2786851100.9400001}]

{"sheet":"Nota 2","index":5,"n_rows":12,"n_cols":4,"rows_kept":12,"cut":false,"hidden":false,"merged":[[13,1,14,5],[2,1,3,3],[4,1,4,3]]}
[]
[null,"Nota 2:"]
[null,"Ganancias por Fluctuación Cambiaria"]
[]
[null,{"$f":"+'Nota 1'!$B$5:$H$5","v":"al 31 de Enero de 2018"}]
[]
[null,"Cuenta",null,"Mes"]
[null,"Por Cuentas Corrientes",null,4825481.37]
[null,"En Inversiones En Valores De Emisores Nacionales $",null,367935133.52999997]
[null,"Por Cuentas Por Cobrar",null,54690.85]
[null,"Por Productos Por Cobrar Sobre Inversion",null,4095293.67]
[null,"Ganancia Total Generada",null,{"$f":"SUM(D8:D11)","v":376910599.42000002}]

{"sheet":"Nota 3","index":6,"n_rows":10,"n_cols":4,"rows_kept":10,"cut":false,"hidden":false,"merged":[[2,1,3,3],[4,1,4,3]]}
[]
[null,"Nota 3:"]
[null,"Ganancias por Variaciones en la Unidad de Referencia"]
[]
[null,{"$f":"+'Nota 1'!$B$5:$H$5","v":"al 31 de Enero de 2018"}]
[]
[]
[null,"Cuenta",null,"Mes"]
[null,"En valores emitidos por el Gobierno",null,372139561.48000002]
[null,"Ganancia Total Generada",null,{"$f":"SUM(D9:D9)","v":372139561.48000002}]

{"sheet":"Nota 4","index":7,"n_rows":10,"n_cols":10,"rows_kept":10,"cut":false,"hidden":false,"merged":[[2,1,3,9],[4,1,4,9]]}
[]
[null,"Nota 4:"]
[null,"Ingresos sobre Préstamos a Afiliados y Pensionados "]
[]
[null,{"$f":"+'Nota 1'!$B$5:$H$5","v":"al 31 de Enero de 2018"}]
[]
[null,"Total de Préstamo",null,"Entidad",null,"Plazo",null,"Tasa actual",null,"Ingreso Por Interes mensual"]
[]
[null,1000000000,null,"ANEJUD",null,"10 años",null,8.7400000000000005E-2,null,352473.08]
[{"$nulls":7}," "]

{"sheet":"Nota 5","index":8,"n_rows":17,"n_cols":6,"rows_kept":17,"cut":false,"hidden":false,"merged":[[3,1,4,6],[5,1,5,5],[16,1,22,5]]}
[]
[null,"Nota 5:"]
[]
[null,"PLAN DE CONTRIBUCIONES"]
[]
[null,{"$f":"++'Nota 1'!$B$5:$H$5","v":"al 31 de Enero de 2018"}]
[]
[null,"Aportes",null,"Porcentajes",null,"Mensual"]
[]
[null,"Trabajadores",null,0.11,null,2287762405.6500001]
[null,"Patrono",null,0.14360000000000001,null,2968360111.7600002]
[null,"Estado 1",null,5.7999999999999996E-3,null,125547130.2]
[null,"Jubilados y Pensionados ",null,0.11,null,601122727.72000003]
[]
[null,"Total Aportes",null,null,null,{"$f":"SUM(F10:F13)","v":5982792375.3299999}]
[]
[null,"Nota:    1-) Mediante Acuerdo del Consejo Superior N° 2-2018, art I, se autoriza a disminuir el porcentaje del aporte estatal, a partir del mes de enero 2018 pasando de 1.24% a 0.58%, lo anterior por cuanto el Ministerio de Hacienda recortó del Presupuesto del Poder Judicial la suma de ¢1,200,000,000 (Mil doscientos millones de colones)"]

{"sheet":"Nota 6","index":9,"n_rows":15,"n_cols":5,"rows_kept":15,"cut":false,"hidden":false,"merged":[[3,2,4,4],[5,2,5,4],[14,1,16,5]]}
[]
[null,"Nota 6:"]
[]
[null,null,"SALIDA DE RECURSOS"]
[]
[null,null,{"$f":"+'Nota 5'!B6","v":"al 31 de Enero de 2018"}]
[]
[{"$nulls":4},"Mensual"]
[]
[null,null,"Aportes ",null,5982792375.3299999]
[null,null,"Rendimientos ",null,2908712973.21]
[]
[null,null,"TOTAL",null,{"$f":"SUM(E10:E11)","v":8891505348.5400009}]
[]
[null,"Observación: Corresponde al traslado de todos los recursos de la cuenta patrimonial \"Reserva en formación\" a la cuenta \"Provisión para pensiones en curso de pago\""]

{"sheet":"Nota 7","index":10,"n_rows":12,"n_cols":4,"rows_kept":12,"cut":false,"hidden":false,"merged":[[2,1,3,3],[4,1,4,3]]}
[]
[null,"Nota 7:"]
[null,"Pérdida por Fluctuación Cambiaria"]
[]
[null,{"$f":"+'Nota 6'!C6","v":"al 31 de Enero de 2018"}]
[]
[null,"Cuenta",null,"Mes"]
[null,"Por Cuentas Corrientes",null,385487.4]
[null,"En Inversiones En Valores De Emisores Nacionales $",null,248391873.56999999]
[null,"Por Cuentas Por Cobrar",null,792.7]
[null,"Por Productos Por Cobrar Sobre Inversión",null,2642682.7599999998]
[null,"Pérdida Total Generada",null,{"$f":"SUM(D8:D11)","v":251420836.42999998}]

{"sheet":"Nota 8","index":11,"n_rows":10,"n_cols":4,"rows_kept":10,"cut":false,"hidden":false,"merged":[[3,1,4,3],[5,1,5,3]]}
[]
[null,"Nota 8:"]
[]
[null,"Pérdida por Variaciones en la Unidad de Referencia"]
[]
[null,{"$f":"+'Nota 7'!B5:F5","v":"al 31 de Enero de 2018"}]
[]
[null,"Cuenta",null,"Mes"]
[null,"En valores emitidos por el Gobierno",null,11862102.789999999]
[null,"Pérdida Total Generada",null,{"$f":"SUM(D9:D9)","v":11862102.789999999}]

{"sheet":"Nota 9","index":12,"n_rows":13,"n_cols":4,"rows_kept":13,"cut":false,"hidden":false,"merged":[[2,1,3,3],[4,1,4,3]]}
[]
[null,"Nota 9:"]
[null,"GASTOS GENERALES"]
[]
[null,{"$f":"+'Nota 8'!B6:F6","v":"al 31 de Enero de 2018"}]
[]
[null,"GASTOS GENERALES",null,"MENSUAL"]
[]
[null,"Servicios Bancarios",null,74651.83]
[null,"Cotización Seguro De Enfermedad y Maternidad",null,478165805.85000002]
[null,"Gastos Diversos",null,80929.539999999994]
[]
[null,"TOTAL DE GASTOS GENERALES",null,{"$f":"SUM(D9:D12)","v":478321387.22000003}]

{"sheet":"Nota 10","index":13,"n_rows":20,"n_cols":8,"rows_kept":20,"cut":false,"hidden":false,"merged":[[2,1,3,7],[4,1,4,7]]}
[]
[null,"Nota 10:"]
[null,"Cuentas Corrientes y de Ahorro"]
[]
[null,{"$f":"+'Nota 9'!B5:F5","v":"al 31 de Enero de 2018"}]
[]
[" ","CUENTAS CORRIENTES Y DE AHORRO PROV.  PARA PENSIONES EN CURSO DE PAGO",null,"TOTAL ¢",null,"TIPO DE CAMBIO",null,"TOTAL $ \n"]
[]
[null,"Banco Nacional de C.R. Cta 1234-0",null,15251160.01]
[null,"Banco de Costa Rica Cta 229-32-9",null,172275050.56]
[null,"Banco de Costa Rica Cta 174961-7",null,99000]
[null,"Banco Popular Cta 1019277-0",null,16656642.970000001]
[null,"Banco Nacional de C.R. 2413-8 ",null,0]
[null,"Banco de Costa Rica 349803-4",null,64.319999999999993]
[null,"Banco de Costa Rica 349824-7",null,30.65]
[null,"Banco de Costa Rica Cta. 112247-9 $",null,1329077.1599999999,null,571.48,null,{"$f":"+D16/F16","v":2325.675719185273}]
[null,"Banco Nacional de C.R. Cta  601227-7 $",null,167573.72,null,571.48,null,{"$f":"+D17/F17","v":293.22761951424371}]
[null,"Banco Popular Cta 1914-1 $",null,285724.96000000002,null,571.48,null,499.97368236858682]
[]
[null,"TOTAL EN CUENTAS CORRIENTES Y DE AHORRO",null,{"$f":"SUM(D9:D18)","v":206064324.34999999},null,null,null,{"$f":"SUM(H16:H18)","v":3118.8770210681032}]

{"sheet":"Nota 11","index":14,"n_rows":25,"n_cols":8,"rows_kept":25,"cut":false,"hidden":false,"merged":[[2,1,3,7],[6,1,6,3],[15,1,15,3],[4,1,4,7]]}
[]
[null,"Nota 11:"]
[null,"Inversiones en Valores de Emisores Nacionales "]
[]
[null,{"$f":"+'Nota 10'!B5:H5","v":"al 31 de Enero de 2018"}]
[]
[null,"COLONES"]
[]
[null,"Inv. Valor Facial",null,423934191252.40002]
[null,"Primas ",null,10246398694.369999]
[null,"Descuentos",null,-83370348.040000021]
[]
[null,"SALDO INVERSIONES EN COLONES ",null,{"$f":"SUM(D9:D11)","v":434097219598.73004}]
[]
[]
[null,"SALDO DÓLARES",null,null,null,"TIPO DE CAMBIO ",null,"SALDO EN COLONES"]
[]
[null,"Inv. Valor Facial",null,{"$f":"+H18/F18","v":66641488.070028685},null,571.48,null,38084277602.259995]
[null,"Primas ",null,{"$f":"+H19/F19","v":91538.590081892646},null,571.48,null,52312473.460000008]
[null,"Descuentos",null,{"$f":"+H20/F20","v":-8697.6500139987384},null,571.48,null,-4970533.0299999993]
[null,"Títulos de Participación",null,{"$f":"+H21/F21","v":11915993.010009099},null,571.48,null,6809751685.3599997]
[]
[null,"SALDO INVERSIONES EN DÓLARES (COLONIZADO)",null,{"$f":"SUM(D18:D21)","v":78640322.020105675},null,null,null,{"$f":"SUM(H18:H21)","v":44941371228.049995}]
[]
[null,"TOTAL GENERAL:",null,{"$f":"+D13+H23","v":479038590826.78003}]

{"sheet":"Nota 12","index":15,"n_rows":18,"n_cols":4,"rows_kept":18,"cut":false,"hidden":false,"merged":[[2,1,3,3],[4,1,4,3],[14,1,15,3],[17,1,18,3],[17,4,18,5]]}
[]
[null,"Nota 12:"]
[null,"CUENTAS POR COBRAR"]
[]
[null,{"$f":"+'Nota 11'!B5:H5","v":"al 31 de Enero de 2018"}]
[]
[null,"Cuentas por Cobrar",null,"TOTAL"]
[]
[null,"Títulos vencidos pendientes de cobro",null,0]
[null,"Impuesto Sobre La Renta Por Cobrar (1)",null,196645505.21000001]
[null,"Sumas Pend. De cobrar (2)",null,21.61]
[]
[null,"Saldo:",null,{"$f":"D9+D10+D11","v":196645526.82000002}]
[]
[null,"1-) Corresponden aquellas sumas que debe recuperar el Régimen por concepto de exención del 8% del impuesto sobre la renta de los títulos valores, que por su situación particular, no es posible cobrarlos inmediatamente con el vencimiento de los cupones"]
[]
[]
[null,"2-)  En esta cuenta se registrará las cuentas por cobrar, generadas de la captación de inversiones, por comisiones pagadas de más, intereses moratorios u otros."]

{"sheet":"Nota 13","index":16,"n_rows":18,"n_cols":4,"rows_kept":18,"cut":false,"hidden":false,"merged":[[3,1,4,3],[5,1,5,3]]}
[]
[null,"Nota 13:"]
[]
[null,"Productos por cobrar sobre Inversiones de Emisores Nacionales"]
[]
[null,{"$f":"+'Nota 12'!B5:D5","v":"al 31 de Enero de 2018"}]
[]
[null,"Productos por cobrar sobre Inversiones",null,"TOTAL"]
[]
[null,"Sobre Valores Emitidos Por El Banco Central",null,501756507.39999998]
[null,"Sobre Valores Emitidos Por El Gobierno",null,7092532936.29]
[null,"Sobre Valor. Emit. otras Ent Pub. no Fininancieras",null,228483795.41999999]
[null,"Sobre Valores Emitidos Por Bancos Comerciales",null,356118968.39999998]
[null,"Sobre Val. Emit. Bcos. Pub. Ley. Especiales",null,280310047.11000001]
[null,"Sobre Val. Emit. Bcos. Bancos Privados",null,23710328.02]
[null,"Dividendos por Cobrar",null,44998683.799999997]
[]
[null,"Saldo",null,{"$f":"SUM(D10:D17)","v":8527911266.4399996}]

{"sheet":"Nota 14","index":17,"n_rows":21,"n_cols":4,"rows_kept":21,"cut":false,"hidden":false,"merged":[[2,1,3,3],[4,1,4,3]]}
[]
[null,"Nota 14:"]
[null,"Préstamos por Cobrar"]
[]
[null,{"$f":"+'Nota 13'!B6:D6","v":"al 31 de Enero de 2018"}]
[]
[null,"SUMAS GIRADAS A:",null," MONTO "]
[]
[null,"ANEJUD:  Débito No. 2863 de la Cta 174961-7 BCR el 9 de diciembre de 2008  (Autorizado por la Dirección Ejecutiva oficio No.9488-DE-08)",null,166244019.15000001]
[null,"ANEJUD: Débito No. 20806860 de la Cta 1234-0 BNCR el 9 de diciembre de 2008 (Autorizado por la Dirección Ejecutiva oficio No.9488-DE-08)",null,410921974.85000002]
[null,"ANEJUD:  Débito No. 379 de la Cta 229-32-9 BCR el 10 de febrero de 2009  (Autorizado por la Dirección Ejecutiva con oficio No. 1123-DE-2009 ).  El desembolso autorizado por esa Dirección Ejecutiva es por ¢422.834.006 de los cuales y a solicitud de ANEJUD con oficio del 10 de febrero de 2009 a Don Walter Jiménez Sorio, Jefe del Departamento Financiero Contable en su oportunidad, se deduce la primera cuota de intereses cancelada por adelantado de ¢6.876.239.  El total girado con el débito No. 379 es ¢415.957.767. ",null,422834006]
[]
[null,"TOTAL DE LOS DESEMBOLSOS",null,{"$f":"SUM(D9:D11)","v":1000000000}]
[]
[null,"Menos. Amortizaciones",null,956253494.64000034]
[]
[null,"Saldo del préstamo",null,{"$f":"+D13-D15","v":43746505.359999657}]
[]
[null,"Mas: Intereses por cobrar",null,2376]
[]
[null,"TOTAL POR COBRAR",null,{"$f":"+D17+D19","v":43748881.359999657}]

{"sheet":"Nota 15","index":18,"n_rows":25,"n_cols":10,"rows_kept":25,"cut":false,"hidden":false,"merged":[[2,1,3,9],[4,1,4,9]]}
[]
[null,"Nota 15:"]
[null,"APORTES POR COBRAR"]
[]
[null,{"$f":"+'Nota 14'!B5:D5","v":"al 31 de Enero de 2018"}]
[]
[null,"Nota",null,"Sub-nota",null,"APORTES POR COBRAR",null,"Detalle",null,"Total"]
[]
[null,"15.1",null,null,null,"Aporte por cobrar a los trabajadores",null,null,null,{"$f":"+H10+H11+H12","v":2874161014.0500002}]
[null,null,null,"15.1.1",null,"Aporte Ordinario",null,1401685.65]
[null,null,null,"15.1.2",null,"Aporte Ordinario S .Escolar",null,179602645.69]
[null,null,null,"15.1.3",null,"Aporte Reconocimiento de tiempo servido",null,2693156682.71]
[null,"15.2",null,null,null,"Aportes por cobrar al Patrono",null,null,null,{"$f":"+H14+H15","v":5797185506.2788}]
[null,null,null,"15.2.1",null,"Aportes Por Cobrar Poder Jud.-Patrono",null,2740786524.2547998]
[null,null,null,"15.2.2",null,"Apor. x Cobrar Poder Jud.-Patrono (S.E)",null,3056398982.0240002]
[null,"15.3",null,null,null,"Aportes por cobrar al Estado",null,null,null,{"$f":"+H17+H18","v":369333831.44999999}]
[null,null,null,"15.3.1",null,"Aportes Por Cobrar Poder Jud.-Estado",null,115969657.14]
[null,null,null,"15.3.2",null,"Apor. x Cobrar Poder Jud.-Estado (S.E)",null,253364174.31]
[null,"15.4",null,null,null,"Otros aportes por cobrar",null,null,null,{"$f":"+H20+H21+H22+H23","v":250573204.71999997}]
[null,null,null,"15.4.1",null,"Sumas canceladas de más a Jubilados y Pensionados",null,142338058.78]
[null,null,null,"15.4.2",null,"Aportes Reconocimiento de Tiempo Servido Fuera del Poder Judicial (RTSFPJ)",null,7540290.0099999998]
[null,null,null,"15.4.3",null,"Otros aportes por cobrar entidades deductoras",null,1357524.06]
[null,null,null,"15.4.4",null,"Sumas canceladas de más a Jubilados y Pensionados (Aguinaldo)",null,99337331.86999999]
[]
[{"$nulls":5},"TOTAL ",null,null,null,{"$f":"SUM(J9:J23)","v":9291253556.4988003}]

{"sheet":"Nota 16","index":19,"n_rows":12,"n_cols":8,"rows_kept":12,"cut":false,"hidden":false,"merged":[[2,1,3,7],[4,1,4,7],[11,1,11,7]]}
[]
[null,"Nota 16:"]
[null,"INTANGIBLES"]
[]
[null,{"$f":"+'Nota 15'!B5:J5","v":"al 31 de Enero de 2018"}]
[]
[null,"Detalle",null,"Monto",null,"Amortización",null,"Total"]
[null,"Sistema inversiones \"Internet Systems Development Insyde S.A\"",null,7618670,null,-7618670,null,0]
[]
[]
[null,"Nota:"]
[null,"Corresponde al registro de la compra del Sistema de Inversiones a la empresa Internet Systems Development Insyde S.A. con un valor de $14,750.00, valorado al tipo de cambio de la fecha de adquisición del activo (15 de agosto de 2007) de ¢516.52, para un total de ¢7,618,670. A dicho monto se descuenta la amortización acumulada al cierre del presente mes que asciende a ¢7,618,670 para un activo neto de ¢0.00. La vida útil del sistema en mención es de 5 años y considerando que fue registrado en setiembre del 2007 se encuentra depreciado en su totalidad, no obstante, a la fecha de este informe se encuentra en funcionamiento. \n\nEn el periodo comprendido entre el 15 de julio a 12 de diciembre del 2011 la Dirección de Tecnología de Información realizó mejoras al sistema de Inversiones por la suma de ¢1.673.895. Lo anterior, de acuerdo con la información suministrada por la Dirección de Tecnología de la Información, mediante correo electrónico del 27 de abril del 2017 y oficio 1635-DTI-2017, dicho monto se encuentra registrado actualmente en los registros contables del Poder Judicial por igual suma.\n\nCon oficio 425-SC-2015 de 26 de agosto del 2015, se realizó la consulta a la Superintendencia de Pensiones (SUPEN) sobre la forma de registro contable de la información suministrada por la Dirección de Tecnología de Información, en virtud de que, en el Manual de Cuentas para el Régimen de Capitalización Colectiva emitido por dicha Superintendencia, no se observa alguna cuenta contable para el registro de la reevaluación de activos intangibles.\n\n La SUPEN ante la consulta realizada, indicó lo siguiente:\n\n“[…] conforme lo establecido en las Normas internacionales de Información Financiera (NIIF), se le comunica que no existe forma alguna de atribuir costo a un activo intangible luego del final de su vida útil: aunque esté en operación y generando beneficios, su valor en libros deberá seguir siendo cero…” \n\n\n\n\n"]

{"sheet":"Nota 17","index":20,"n_rows":14,"n_cols":4,"rows_kept":14,"cut":false,"hidden":false,"merged":[[3,1,4,3],[5,1,5,3]]}
[]
[null,"Nota 17"]
[]
[null,"Retenciones A Pensionados"]
[]
[null,{"$f":"+'Nota 16'!B5:H5","v":"al 31 de Enero de 2018"}]
[]
[null,"RETENCIONES A JUBILADOS Y PENSIONADOS",null,"TOTAL"]
[]
[null,"Impuesto Sobre La Renta",null,395132619.52999997]
[null,"Caja Costarricense Seguro Social",null,273237606.24000001]
[null,"Pensiones Alimentarias",null,32747]
[]
[null,"TOTAL DE RETENCIONES A JUBILADOS Y PENSIONADOS",null,{"$f":"SUM(D9:D12)","v":668402972.76999998}]

{"sheet":"Nota 18","index":21,"n_rows":17,"n_cols":4,"rows_kept":17,"cut":false,"hidden":false,"merged":[[3,1,4,3],[5,1,5,3]]}
[]
[null,"Nota 18:"]
[]
[null,"Obligaciones Por Liquidar Empleados y Exempleados"]
[]
[null,{"$f":"+'Nota 17'!B6:D6","v":"al 31 de Enero de 2018"}]
[]
[null,"OBLIGACIONES POR LIQUIDAR EMPL. Y EXEMPL.",null,"TOTAL"]
[]
[null,"VCLO",null,64093.760000000002]
[null,"VAMP",null,8033.72]
[null,"CMJW",null,31014.25]
[null,"FJJA",null,1544.25]
[null,"SZMT",null,204337.78]
[null,"MTMA",null,49646.47]
[]
[null,"OBLIGACIONES POR LIQUIDAR EMPL. Y EXEMPL.",null,{"$f":"SUM(D10:D16)","v":358670.23}]

{"sheet":"Nota 19","index":22,"n_rows":17,"n_cols":4,"rows_kept":17,"cut":false,"hidden":false,"merged":[[3,1,4,3],[5,1,5,3]]}
[]
[null,"Nota 19:"]
[]
[null,"Obligaciones Transitorias por Liquidar"]
[]
[null,{"$f":"+'Nota 18'!B6:D6","v":"al 31 de Enero de 2018"}]
[]
[null,"Obligaciones Transitorias por Liquidar",null,"Saldo"]
[]
[null,"Benef. no retirados y por fallecimiento",null,44247511.079999998]
[null,"Sumas en transito por aclarar",null,2893344.97]
[null,"Institucione Financieras Banco Popular y de Desarr",null,498197.34]
[null,"Instituciones Gubernamentales-Caja Costarricense d",null,3759449.03]
[null,"Anejud",null,703077.45]
[null,"Instituciones Financieras-Banco Popular y de Desar",null,232250.73]
[]
[null,"Total Obligaciones Transitorias por Liquidar",null,{"$f":"SUM(D10:D15)","v":52333830.600000001}]

{"sheet":"Nota 20","index":23,"n_rows":9,"n_cols":6,"rows_kept":9,"cut":false,"hidden":false,"merged":[[3,1,4,5],[5,1,5,5]]}
[]
[null,"Nota 20:"]
[]
[null,"Cotización Seguro De Enfermedad y Maternidad"]
[]
[null,{"$f":"+'Nota 19'!B6:D6","v":"al 31 de Enero de 2018"}]
[]
[null,"Entidad",null,"Porcentaje",null,"Monto"]
[null,"Caja Costarricense del Seguro Social",null,8.7499999999999994E-2,null,478171777.31999999]

{"sheet":"Nota 21","index":24,"n_rows":13,"n_cols":10,"rows_kept":13,"cut":false,"hidden":false,"merged":[[2,1,3,9],[4,1,4,9]]}
[]
[null,"Nota 21:"]
[null,"PROVISIONES PARA PENSIONES EN CURSO DE PAGO"]
[]
[null,{"$f":"+'Nota 20'!B6:F6","v":"al 31 de Enero de 2018"}]
[]
[null,"Nota",null,"Sub-nota",null,"APORTES POR COBRAR",null,"Detalle",null,"Total"]
[]
[null,"21.1",null,null,null,"Recursos recibido de reservas en formación",null,null,null,942474828183.38]
[null,"21.2",null,null,null,"(Menos) Pago plan de beneficios",null,null,null,449166309674.46002]
[null,null,null,"21.2.1",null,"Traslados a otros regímenes",null,460991805.31]
[]
[{"$nulls":5},"TOTAL ",null,null,null,{"$f":"+J9-J10","v":493308518508.91998}]

{"sheet":"Nota 22","index":25,"n_rows":9,"n_cols":4,"rows_kept":9,"cut":false,"hidden":false,"merged":[[3,1,4,3],[5,1,5,3]]}
[]
[null,"Nota 22:"]
[]
[null,"CUENTAS DE ORDEN DEUDORAS Y ACREDORAS"]
[]
[null,{"$f":"+'Nota 21'!B5:J5","v":"al 31 de Enero de 2018"}]
[]
[null,"Concepto",null,"Monto"]
[null,"Cuentas por cobrar por reconocimiento de tiempo servido en otras dependencias o instituciones públicas, de aquellos servidores en condición de propietarios que renunciaron al Poder Judicial. ",null,44287013.359999999]

{"sheet":"Nota 23","index":26,"n_rows":14,"n_cols":4,"rows_kept":14,"cut":false,"hidden":false,"merged":[[3,1,4,3]]}
[]
[null,"Nota 23:"]
[]
[null,"SUPERAVIT O DEFICIT ACTUARIAL DEL TOTAL DE PENSIONES"]
[]
[]
[]
[null,"SUPERÁVIT  O DÉFICIT ACTUARIAL DEL TOTAL DE PENSIONES",null,"TOTAL"]
[]
[null,"Dèficit al 31-12-2017",null,-3818893139922]
[null,"Más:       Total de  ingresos a la Provisión para Pensiones en Curso de Pago del mes ",null,8891482542.9899998]
[null,"Menos:    Total de egresos de la Provisión para Pensiones en Curso de Pago del mes ",null,5466607861.6000004]
[]
[null,"SUPERÁVIT O DÉFICIT AL 31-01-2018",null,{"$f":"+D10+D11-D12","v":-3815468265240.6099}]

{"sheet":"Nota 24","index":27,"n_rows":12,"n_cols":4,"rows_kept":12,"cut":false,"hidden":false,"merged":[[3,1,4,3]]}
[]
[null,"Nota 24:"]
[]
[null,"SUPERAVIT O DEFICIT ACTUARIAL DE PENSIONES EN CURSO DE PAGO"]
[]
[]
[null,"DÉFICIT ACTUARIAL DE PENSIONES EN CURSO DE PAGO",null,"TOTAL"]
[]
[null,"Provisión para Pensiones en Curso de Pago ( Nota 21)",null,493308518508.91998]
[null,"Menos:  Valor Presente Pensiones en Curso de Pago (4)",null,677998560169]
[]
[null,{"$f":"+'Nota 23'!B14","v":"SUPERÁVIT O DÉFICIT AL 31-01-2018"},null,{"$f":"+D9-D10","v":-184690041660.08002}]